[Event "*** Titled Tuesday Blitz"]
[Site "Chess.com"]
[Date "2019.09.03"]
[Round "5"]
[White "VladimirBelous"]
[Black "INLOVEWITHF"]
[Result "1/2-1/2"]
[WhiteElo "2721"]
[BlackElo "2309"]
[TimeControl "180+2"]
[EndTime "16:05:31 PDT"]
[Termination "Game drawn by repetition"]

1. c4 {[%clk 0:03:01.9]} 1... g6 {[%clk 0:02:59.4]} 2. Nf3 {[%clk 0:03:02.7]}
2... Bg7 {[%clk 0:02:59.8]} 3. Nc3 {[%clk 0:03:04.3]} 3... Nf6 {[%clk 0:03:00]}
4. d4 {[%clk 0:03:05.7]} 4... d6 {[%clk 0:03:00.8]} 5. e4 {[%clk 0:03:07.1]}
5... O-O {[%clk 0:03:01.8]} 6. h3 {[%clk 0:03:08.8]} 6... e5 {[%clk 0:03:01.9]}
7. d5 {[%clk 0:03:10.3]} 7... Nh5 {[%clk 0:02:56.5]} 8. g3 {[%clk 0:03:10.5]}
8... f5 {[%clk 0:02:56.8]} 9. exf5 {[%clk 0:03:10.9]} 9... gxf5 {[%clk
0:02:57.2]} 10. Nh4 {[%clk 0:03:03.5]} 10... Qe8 {[%clk 0:02:38]} 11. Be2 {[%clk
0:03:00.5]} 11... Nf6 {[%clk 0:02:39]} 12. Qc2 {[%clk 0:03:01.9]} 12... e4
{[%clk 0:02:38.7]} 13. Be3 {[%clk 0:02:54.5]} 13... a5 {[%clk 0:02:37.3]} 14.
Rg1 {[%clk 0:02:34.8]} 14... Na6 {[%clk 0:02:29.3]} 15. g4 {[%clk 0:02:32.9]}
15... Nb4 {[%clk 0:02:21.1]} 16. Qd2 {[%clk 0:02:33]} 16... f4 {[%clk
0:01:59.8]} 17. Bxf4 {[%clk 0:02:32.6]} 17... Nd3+ {[%clk 0:02:00.8]} 18. Bxd3
{[%clk 0:02:33.4]} 18... exd3+ {[%clk 0:02:02.7]} 19. Qe3 {[%clk 0:02:16]} 19...
Qd8 {[%clk 0:01:34.6]} 20. O-O-O {[%clk 0:02:08.8]} 20... Nxg4 {[%clk
0:01:23.3]} 21. hxg4 {[%clk 0:02:04]} 21... Qxh4 {[%clk 0:01:24.7]} 22. Bg5
{[%clk 0:00:58.4]} 22... Qxf2 {[%clk 0:01:19.1]} 23. Qxd3 {[%clk 0:00:59.6]}
23... Rf3 {[%clk 0:00:51.4]} 24. Qe4 {[%clk 0:00:34.6]} 24... h6 {[%clk
0:00:19.5]} 25. Bd2 {[%clk 0:00:32.6]} 25... Bd7 {[%clk 0:00:18.3]} 26. Qe7
{[%clk 0:00:23.5]} 26... Rf7 {[%clk 0:00:17.6]} 27. Qe4 {[%clk 0:00:20.4]} 27...
Re8 {[%clk 0:00:17.3]} 28. Qg6 {[%clk 0:00:22]} 28... Rf6 {[%clk 0:00:16.1]} 29.
Qc2 {[%clk 0:00:21.7]} 29... Rf7 {[%clk 0:00:12]} 30. Qg6 {[%clk 0:00:21.7]}
30... Rf6 {[%clk 0:00:12.6]} 31. Qd3 {[%clk 0:00:22.4]} 31... Rf3 {[%clk
0:00:13.1]} 32. Qg6 {[%clk 0:00:23.4]} 32... Rf6 {[%clk 0:00:14]} 1/2-1/2

[Event "*** Titled Tuesday Blitz"]
[Site "Chess.com"]
[Date "2019.09.03"]
[Round "5"]
[White "Everyfishknows"]
[Black "newauto"]
[Result "0-1"]
[WhiteElo "2265"]
[BlackElo "1950"]
[TimeControl "180+2"]
[EndTime "16:05:40 PDT"]
[Termination "newauto won by checkmate"]

1. Nf3 {[%clk 0:02:56.7]} 1... d5 {[%clk 0:02:58.4]} 2. c4 {[%clk 0:02:56.4]}
2... c6 {[%clk 0:02:58.6]} 3. d4 {[%clk 0:02:57]} 3... Nf6 {[%clk 0:02:59.4]} 4.
Qc2 {[%clk 0:02:57]} 4... dxc4 {[%clk 0:02:57.6]} 5. Qxc4 {[%clk 0:02:57.1]}
5... Bf5 {[%clk 0:02:47.3]} 6. e3 {[%clk 0:02:56.2]} 6... e6 {[%clk 0:02:47.4]}
7. Nc3 {[%clk 0:02:52]} 7... Nbd7 {[%clk 0:02:47.3]} 8. h3 {[%clk 0:02:37.4]}
8... Be7 {[%clk 0:02:43.7]} 9. a4 {[%clk 0:02:17.7]} 9... a5 {[%clk 0:02:42.3]}
10. Nh4 {[%clk 0:01:48.4]} 10... O-O {[%clk 0:02:35.5]} 11. Nxf5 {[%clk
0:01:46.5]} 11... exf5 {[%clk 0:02:35.2]} 12. Bd3 {[%clk 0:01:47.1]} 12... g6
{[%clk 0:02:34.4]} 13. O-O {[%clk 0:01:47.9]} 13... Nb6 {[%clk 0:02:33.7]} 14.
Qb3 {[%clk 0:01:48.5]} 14... Nbd5 {[%clk 0:02:34.7]} 15. Nxd5 {[%clk 0:01:44.7]}
15... Nxd5 {[%clk 0:02:31.8]} 16. Bd2 {[%clk 0:01:35.8]} 16... Bb4 {[%clk
0:02:17.2]} 17. Bxb4 {[%clk 0:01:35.7]} 17... Nxb4 {[%clk 0:02:14.9]} 18. Bc4
{[%clk 0:01:36.3]} 18... Qe7 {[%clk 0:02:12.3]} 19. Rac1 {[%clk 0:01:35.5]}
19... Rfe8 {[%clk 0:02:11.2]} 20. d5 {[%clk 0:01:19.6]} 20... cxd5 {[%clk
0:01:55.7]} 21. Bxd5 {[%clk 0:01:20]} 21... Nxd5 {[%clk 0:01:37.7]} 22. Qxd5
{[%clk 0:01:10.9]} 22... Red8 {[%clk 0:01:36.6]} 23. Qb5 {[%clk 0:00:51.1]}
23... Qd7 {[%clk 0:01:31.6]} 24. Qxd7 {[%clk 0:00:42.6]} 24... Rxd7 {[%clk
0:01:31.6]} 25. Rc5 {[%clk 0:00:42.7]} 25... b6 {[%clk 0:01:10.3]} 26. Rb5
{[%clk 0:00:40.5]} 26... Rb8 {[%clk 0:01:08.9]} 27. Rc1 {[%clk 0:00:41.2]} 27...
Rd2 {[%clk 0:01:06.3]} 28. Rc6 {[%clk 0:00:41.2]} 28... Kg7 {[%clk 0:01:01.5]}
29. Rcxb6 {[%clk 0:00:41.2]} 29... Rc8 {[%clk 0:01:00.9]} 30. Rxa5 {[%clk
0:00:12.9]} 30... Rcc2 {[%clk 0:00:58.5]} 31. Rb7 {[%clk 0:00:07.3]} 31... Rxf2
{[%clk 0:00:58.1]} 32. Raa7 {[%clk 0:00:07.6]} 32... Rxg2+ {[%clk 0:00:57.4]}
33. Kh1 {[%clk 0:00:08.9]} 33... Rh2+ {[%clk 0:00:57.4]} 34. Kg1 {[%clk
0:00:10.4]} 34... Rcg2+ {[%clk 0:00:57.3]} 35. Kf1 {[%clk 0:00:11.7]} 35... Rc2
{[%clk 0:00:52.9]} 36. Rxf7+ {[%clk 0:00:12.3]} 36... Kh6 {[%clk 0:00:53.6]} 37.
Kg1 {[%clk 0:00:08.5]} 37... Rhd2 {[%clk 0:00:54.1]} 38. Rxh7+ {[%clk
0:00:04.1]} 38... Kg5 {[%clk 0:00:53.7]} 39. Rad7 {[%clk 0:00:04]} 39... Rc1#
{[%clk 0:00:53.1]} 0-1

[Event "*** Titled Tuesday Blitz"]
[Site "Chess.com"]
[Date "2019.09.03"]
[Round "5"]
[White "2165149677570"]
[Black "HrvojeZagreb"]
[Result "1-0"]
[WhiteElo "2312"]
[BlackElo "2072"]
[TimeControl "180+2"]
[EndTime "16:05:44 PDT"]
[Termination "2165149677570 won by resignation"]

1. e4 {[%clk 0:03:01.9]} 1... e6 {[%clk 0:03:00.8]} 2. d4 {[%clk 0:03:03]} 2...
d5 {[%clk 0:03:01.9]} 3. Nd2 {[%clk 0:03:04.6]} 3... dxe4 {[%clk 0:03:03.1]} 4.
Nxe4 {[%clk 0:03:06.5]} 4... Nd7 {[%clk 0:03:04.3]} 5. Nf3 {[%clk 0:03:07.6]}
5... Ngf6 {[%clk 0:03:05.3]} 6. Nxf6+ {[%clk 0:03:08.9]} 6... Nxf6 {[%clk
0:03:06.8]} 7. Bd3 {[%clk 0:03:10.4]} 7... c5 {[%clk 0:03:07.6]} 8. O-O {[%clk
0:03:09.9]} 8... Qc7 {[%clk 0:02:53.9]} 9. Bg5 {[%clk 0:03:06.6]} 9... a6 {[%clk
0:02:53.1]} 10. Re1 {[%clk 0:02:47.8]} 10... Be7 {[%clk 0:02:38.2]} 11. dxc5
{[%clk 0:02:47.9]} 11... Qxc5 {[%clk 0:02:38.1]} 12. Re5 {[%clk 0:02:38.2]}
12... Qc7 {[%clk 0:02:30.8]} 13. Qe2 {[%clk 0:02:24.5]} 13... h6 {[%clk
0:02:24.6]} 14. Bh4 {[%clk 0:02:15.5]} 14... g5 {[%clk 0:02:20.5]} 15. Bg3
{[%clk 0:02:14.2]} 15... Bd6 {[%clk 0:02:15.6]} 16. Rf5 {[%clk 0:02:15.3]} 16...
Bxg3 {[%clk 0:02:11.9]} 17. hxg3 {[%clk 0:01:36.8]} 17... Ng4 {[%clk 0:01:51.6]}
18. Qe4 {[%clk 0:00:51.7]} 18... Kf8 {[%clk 0:01:36.8]} 19. Rxf7+ {[%clk
0:00:13.3]} 19... Kxf7 {[%clk 0:01:36.3]} 20. Qxg4 {[%clk 0:00:09.6]} 20... Kf8
{[%clk 0:00:44.8]} 21. Re1 {[%clk 0:00:07.7]} 21... Qg7 {[%clk 0:00:20.9]} 22.
Ne5 {[%clk 0:00:06.9]} 22... Ra7 {[%clk 0:00:19]} 23. Qb4+ {[%clk 0:00:07.8]}
23... Kg8 {[%clk 0:00:18.2]} 24. Qb6 {[%clk 0:00:06.2]} 24... Ra8 {[%clk
0:00:19.1]} 25. Qd8+ {[%clk 0:00:07.4]} 25... Qf8 {[%clk 0:00:20.1]} 26. Qd4
{[%clk 0:00:04.9]} 26... b5 {[%clk 0:00:16.1]} 27. Ng6 {[%clk 0:00:05.5]} 27...
Qg7 {[%clk 0:00:16.3]} 28. Qd8+ {[%clk 0:00:06.9]} 28... Kf7 {[%clk 0:00:16.6]}
29. Nxh8+ {[%clk 0:00:08.2]} 29... Qxh8 {[%clk 0:00:16.4]} 30. Qxh8 {[%clk
0:00:09.7]} 30... Bb7 {[%clk 0:00:18]} 31. Qh7+ {[%clk 0:00:10.3]} 31... Kf6
{[%clk 0:00:19.2]} 32. Qxb7 {[%clk 0:00:12.2]} 32... Rf8 {[%clk 0:00:19.5]} 33.
Qf3+ {[%clk 0:00:12.6]} 33... Kg7 {[%clk 0:00:20.6]} 34. Qe4 {[%clk 0:00:13]}
1-0

[Event "*** Titled Tuesday Blitz"]
[Site "Chess.com"]
[Date "2019.09.03"]
[Round "5"]
[White "nitpicker"]
[Black "Mr_Penings"]
[Result "0-1"]
[WhiteElo "2226"]
[BlackElo "2504"]
[TimeControl "180+2"]
[EndTime "16:05:48 PDT"]
[Termination "Mr_Penings won on time"]

1. d4 {[%clk 0:03:01.9]} 1... Nf6 {[%clk 0:03:00.5]} 2. c4 {[%clk 0:03:02.7]}
2... d6 {[%clk 0:03:01]} 3. Nc3 {[%clk 0:03:03.1]} 3... e5 {[%clk 0:03:02.1]} 4.
Nf3 {[%clk 0:03:02.5]} 4... Nbd7 {[%clk 0:03:02.8]} 5. e4 {[%clk 0:03:02.9]}
5... g6 {[%clk 0:03:03.6]} 6. Be2 {[%clk 0:03:00.9]} 6... Bg7 {[%clk 0:03:04.9]}
7. O-O {[%clk 0:03:01.9]} 7... O-O {[%clk 0:03:06.4]} 8. Qc2 {[%clk 0:02:49.6]}
8... exd4 {[%clk 0:03:06.2]} 9. Nxd4 {[%clk 0:02:50.4]} 9... Re8 {[%clk
0:03:05]} 10. Rd1 {[%clk 0:02:49.1]} 10... c6 {[%clk 0:02:50.5]} 11. f3 {[%clk
0:02:36.5]} 11... Qc7 {[%clk 0:02:36]} 12. Bg5 {[%clk 0:02:23]} 12... Nh5 {[%clk
0:02:26.3]} 13. Kh1 {[%clk 0:02:01.8]} 13... Nc5 {[%clk 0:02:08.4]} 14. Bh4
{[%clk 0:01:41.5]} 14... Nf4 {[%clk 0:02:01.9]} 15. Bf1 {[%clk 0:01:40.5]} 15...
Nce6 {[%clk 0:01:29.4]} 16. Bf2 {[%clk 0:01:37.1]} 16... Be5 {[%clk 0:01:26.8]}
17. g3 {[%clk 0:01:36.6]} 17... Nh5 {[%clk 0:01:26.5]} 18. Bg2 {[%clk
0:01:32.8]} 18... Bg7 {[%clk 0:01:17.3]} 19. f4 {[%clk 0:01:22.6]} 19... Nf6
{[%clk 0:01:12.9]} 20. h3 {[%clk 0:01:17.2]} 20... h5 {[%clk 0:01:09.9]} 21.
Nxe6 {[%clk 0:01:04]} 21... Bxe6 {[%clk 0:01:10.5]} 22. b3 {[%clk 0:00:59.3]}
22... Rad8 {[%clk 0:01:04.6]} 23. Rac1 {[%clk 0:00:47.6]} 23... Bc8 {[%clk
0:00:48.6]} 24. Bd4 {[%clk 0:00:36.9]} 24... b6 {[%clk 0:00:36.2]} 25. e5 {[%clk
0:00:21.2]} 25... Bf5 {[%clk 0:00:37.2]} 26. Qf2 {[%clk 0:00:19.8]} 26... dxe5
{[%clk 0:00:36]} 27. Bxe5 {[%clk 0:00:19.9]} 27... Qc8 {[%clk 0:00:35.5]} 28.
Kh2 {[%clk 0:00:18]} 28... h4 {[%clk 0:00:34.8]} 29. Rxd8 {[%clk 0:00:08.7]}
29... hxg3+ {[%clk 0:00:33.3]} 30. Qxg3 {[%clk 0:00:08.8]} 30... Rxd8 {[%clk
0:00:31.1]} 31. Rd1 {[%clk 0:00:08]} 31... Rxd1 {[%clk 0:00:28.5]} 32. Nxd1
{[%clk 0:00:09.9]} 32... Qd7 {[%clk 0:00:28.5]} 33. Ne3 {[%clk 0:00:10.1]} 33...
Be4 {[%clk 0:00:19.8]} 0-1

[Event "*** Titled Tuesday Blitz"]
[Site "Chess.com"]
[Date "2019.09.03"]
[Round "5"]
[White "ulises2013"]
[Black "rikyshi"]
[Result "1-0"]
[WhiteElo "2505"]
[BlackElo "2215"]
[TimeControl "180+2"]
[EndTime "16:05:54 PDT"]
[Termination "ulises2013 won by resignation"]

1. d4 {[%clk 0:03:01.9]} 1... d5 {[%clk 0:03:00.4]} 2. c4 {[%clk 0:03:00.8]}
2... dxc4 {[%clk 0:03:00.6]} 3. Nf3 {[%clk 0:03:00.5]} 3... Nf6 {[%clk
0:02:53.6]} 4. e3 {[%clk 0:03:00.9]} 4... a6 {[%clk 0:02:55.1]} 5. Bxc4 {[%clk
0:03:01.3]} 5... b5 {[%clk 0:02:56.7]} 6. Be2 {[%clk 0:02:59.5]} 6... e6 {[%clk
0:02:57.3]} 7. O-O {[%clk 0:02:58.6]} 7... Bb7 {[%clk 0:02:57.4]} 8. b3 {[%clk
0:02:58.5]} 8... Nbd7 {[%clk 0:02:57.8]} 9. a4 {[%clk 0:02:57.4]} 9... b4 {[%clk
0:02:50.9]} 10. Nbd2 {[%clk 0:02:56.7]} 10... c5 {[%clk 0:02:44.2]} 11. Bb2
{[%clk 0:02:57.2]} 11... Be7 {[%clk 0:02:43.5]} 12. Nc4 {[%clk 0:02:53.9]} 12...
O-O {[%clk 0:02:43.1]} 13. Rc1 {[%clk 0:02:51]} 13... Qb8 {[%clk 0:02:38]} 14.
Nfe5 {[%clk 0:02:32.5]} 14... Nxe5 {[%clk 0:02:15.7]} 15. dxe5 {[%clk
0:02:27.4]} 15... Rd8 {[%clk 0:02:09]} 16. Qc2 {[%clk 0:02:16.3]} 16... Nd5
{[%clk 0:01:41.7]} 17. Rfd1 {[%clk 0:01:55.7]} 17... Qc7 {[%clk 0:01:40.6]} 18.
Bd3 {[%clk 0:01:48]} 18... g6 {[%clk 0:01:40.2]} 19. a5 {[%clk 0:01:47.3]} 19...
Rac8 {[%clk 0:01:38.7]} 20. Be4 {[%clk 0:01:47.7]} 20... Bf8 {[%clk 0:01:18.6]}
21. Rd2 {[%clk 0:01:44.3]} 21... Bc6 {[%clk 0:00:53.2]} 22. Rcd1 {[%clk
0:01:42.7]} 22... Bb5 {[%clk 0:00:54.4]} 23. Bxd5 {[%clk 0:01:40.5]} 23... exd5
{[%clk 0:00:55.4]} 24. Rxd5 {[%clk 0:01:41.5]} 24... Rxd5 {[%clk 0:00:55.7]} 25.
Rxd5 {[%clk 0:01:42.7]} 25... Bxc4 {[%clk 0:00:53.3]} 26. Qxc4 {[%clk
0:01:44.6]} 26... Qxa5 {[%clk 0:00:53.8]} 27. e6 {[%clk 0:01:41.3]} 27... fxe6
{[%clk 0:00:50.4]} 28. Rd7 {[%clk 0:01:42]} 28... Re8 {[%clk 0:00:42.2]} 29. Qf4
{[%clk 0:01:38.4]} 29... Re7 {[%clk 0:00:36.2]} 30. Rd2 {[%clk 0:01:00.3]} 30...
Bg7 {[%clk 0:00:33.4]} 31. Qb8+ {[%clk 0:00:56.4]} 31... Kf7 {[%clk 0:00:33.7]}
32. Qf4+ {[%clk 0:00:55.9]} 32... Kg8 {[%clk 0:00:34.6]} 33. Bxg7 {[%clk
0:00:54.4]} 33... Kxg7 {[%clk 0:00:28.4]} 34. Qe5+ {[%clk 0:00:51.9]} 34... Kf7
{[%clk 0:00:27.9]} 35. h4 {[%clk 0:00:50.4]} 35... Qa3 {[%clk 0:00:22.7]} 36.
Qf4+ {[%clk 0:00:50.3]} 36... Ke8 {[%clk 0:00:22.5]} 37. Qb8+ {[%clk 0:00:45]}
37... Kf7 {[%clk 0:00:22.5]} 38. Rd8 {[%clk 0:00:43.4]} 38... Qa1+ {[%clk
0:00:22.4]} 39. Kh2 {[%clk 0:00:43.9]} 39... Qg7 {[%clk 0:00:23]} 40. Qf4+
{[%clk 0:00:43.3]} 40... Qf6 {[%clk 0:00:20.5]} 41. Rf8+ {[%clk 0:00:44.3]}
41... Kxf8 {[%clk 0:00:21.2]} 42. Qxf6+ {[%clk 0:00:46.2]} 42... Ke8 {[%clk
0:00:22.6]} 43. Qe5 {[%clk 0:00:45.4]} 43... Kd7 {[%clk 0:00:23.9]} 44. Qxc5
{[%clk 0:00:46.2]} 1-0

[Event "*** Titled Tuesday Blitz"]
[Site "Chess.com"]
[Date "2019.09.03"]
[Round "5"]
[White "wonderfultime"]
[Black "Genghis_K"]
[Result "1-0"]
[WhiteElo "2954"]
[BlackElo "2865"]
[TimeControl "180+2"]
[EndTime "16:06:05 PDT"]
[Termination "wonderfultime won by resignation"]

1. d4 {[%clk 0:02:50.8]} 1... Nf6 {[%clk 0:03:00.6]} 2. Nf3 {[%clk 0:02:51.6]}
2... e6 {[%clk 0:02:59.7]} 3. c4 {[%clk 0:02:51.6]} 3... d5 {[%clk 0:03:00.2]}
4. Bg5 {[%clk 0:02:51]} 4... Bb4+ {[%clk 0:02:57.8]} 5. Nc3 {[%clk 0:02:51.4]}
5... h6 {[%clk 0:02:47.6]} 6. Bxf6 {[%clk 0:02:52]} 6... Qxf6 {[%clk 0:02:49.5]}
7. Qa4+ {[%clk 0:02:47]} 7... Nc6 {[%clk 0:02:50.1]} 8. e3 {[%clk 0:02:48.6]}
8... O-O {[%clk 0:02:50.3]} 9. Be2 {[%clk 0:02:46.5]} 9... Bd7 {[%clk
0:02:48.6]} 10. Qc2 {[%clk 0:02:46.8]} 10... dxc4 {[%clk 0:02:40.2]} 11. O-O
{[%clk 0:02:47.5]} 11... Na5 {[%clk 0:02:31.9]} 12. Ne5 {[%clk 0:02:41.7]} 12...
Rfd8 {[%clk 0:02:19.6]} 13. Rac1 {[%clk 0:02:29]} 13... Be8 {[%clk 0:02:06.2]}
14. Nxc4 {[%clk 0:02:16.7]} 14... Nxc4 {[%clk 0:02:00.2]} 15. Bxc4 {[%clk
0:02:18.6]} 15... Rac8 {[%clk 0:01:34.4]} 16. Rfd1 {[%clk 0:02:16.4]} 16... Bxc3
{[%clk 0:01:17.5]} 17. Qxc3 {[%clk 0:02:13.6]} 17... c5 {[%clk 0:01:15]} 18. Be2
{[%clk 0:02:13.2]} 18... b6 {[%clk 0:01:05.1]} 19. h3 {[%clk 0:01:56.6]} 19...
Qe7 {[%clk 0:00:48.4]} 20. Qa3 {[%clk 0:01:54.8]} 20... Kf8 {[%clk 0:00:45.1]}
21. Ba6 {[%clk 0:01:51.9]} 21... Rc7 {[%clk 0:00:41.9]} 22. Rd3 {[%clk
0:01:47.3]} 22... Rcd7 {[%clk 0:00:35.2]} 23. dxc5 {[%clk 0:01:41.6]} 23... Rxd3
{[%clk 0:00:30.3]} 24. Bxd3 {[%clk 0:01:43.5]} 24... bxc5 {[%clk 0:00:30.1]} 25.
Be4 {[%clk 0:01:40.4]} 25... Rd2 {[%clk 0:00:23.3]} 26. Bf3 {[%clk 0:01:25.4]}
26... c4 {[%clk 0:00:11.4]} 27. Qxe7+ {[%clk 0:01:13.4]} 27... Kxe7 {[%clk
0:00:12.4]} 28. Rxc4 {[%clk 0:01:15.3]} 28... Rxb2 {[%clk 0:00:12]} 29. Rc7+
{[%clk 0:01:16.5]} 29... Kf6 {[%clk 0:00:13.5]} 30. Rxa7 {[%clk 0:01:18.4]}
30... g6 {[%clk 0:00:05.8]} 31. Ra8 {[%clk 0:01:12.4]} 31... Bd7 {[%clk
0:00:04.9]} 32. a4 {[%clk 0:01:13.2]} 32... Ra2 {[%clk 0:00:04.5]} 33. a5 {[%clk
0:01:14.7]} 33... Bb5 {[%clk 0:00:06.2]} 34. Bb7 {[%clk 0:01:03.9]} 34... Bc4
{[%clk 0:00:06.5]} 35. a6 {[%clk 0:01:04]} 35... Bd5 {[%clk 0:00:06.7]} 36. Rc8
{[%clk 0:00:56.7]} 36... Ra1+ {[%clk 0:00:03.6]} 37. Kh2 {[%clk 0:00:57.6]}
37... Ra2 {[%clk 0:00:05.5]} 38. Kg3 {[%clk 0:00:59]} 38... Ra5 {[%clk
0:00:05.7]} 39. e4 {[%clk 0:00:52.5]} 39... Bb3 {[%clk 0:00:03.5]} 40. Kf4
{[%clk 0:00:51]} 40... g5+ {[%clk 0:00:04.4]} 41. Ke3 {[%clk 0:00:52.3]} 41...
Ra3 {[%clk 0:00:05.6]} 42. Rc3 {[%clk 0:00:52.3]} 42... Ke5 {[%clk 0:00:07]} 43.
a7 {[%clk 0:00:51.7]} 43... Rxa7 {[%clk 0:00:05.7]} 44. Rxb3 {[%clk 0:00:53]}
44... f5 {[%clk 0:00:07.6]} 45. exf5 {[%clk 0:00:53]} 1-0

[Event "*** Titled Tuesday Blitz"]
[Site "Chess.com"]
[Date "2019.09.03"]
[Round "5"]
[White "Fighterman91"]
[Black "STARMATEcc"]
[Result "1-0"]
[WhiteElo "2743"]
[BlackElo "2527"]
[TimeControl "180+2"]
[EndTime "16:06:09 PDT"]
[Termination "Fighterman91 won by resignation"]

1. e4 {[%clk 0:03:01.9]} 1... c5 {[%clk 0:03:00.3]} 2. Nf3 {[%clk 0:03:01.7]}
2... d6 {[%clk 0:03:01.2]} 3. d4 {[%clk 0:03:03.1]} 3... cxd4 {[%clk 0:03:03.1]}
4. Nxd4 {[%clk 0:03:04.8]} 4... Nf6 {[%clk 0:03:04.9]} 5. Nc3 {[%clk 0:03:06.4]}
5... Nc6 {[%clk 0:03:06.6]} 6. Bg5 {[%clk 0:03:04.5]} 6... e6 {[%clk 0:03:07.9]}
7. Qd3 {[%clk 0:03:05.8]} 7... a6 {[%clk 0:03:03.6]} 8. O-O-O {[%clk 0:03:05.9]}
8... h6 {[%clk 0:03:03.4]} 9. Nxc6 {[%clk 0:02:45.8]} 9... bxc6 {[%clk
0:03:03.9]} 10. Bf4 {[%clk 0:02:47.1]} 10... d5 {[%clk 0:02:57.5]} 11. Be2
{[%clk 0:02:46.5]} 11... Bb4 {[%clk 0:02:56.6]} 12. Qg3 {[%clk 0:02:09.7]} 12...
Bxc3 {[%clk 0:02:33.9]} 13. Qxc3 {[%clk 0:02:10.3]} 13... O-O {[%clk 0:02:33.3]}
14. f3 {[%clk 0:01:52.4]} 14... Bd7 {[%clk 0:01:28.3]} 15. Bd6 {[%clk
0:01:30.6]} 15... Re8 {[%clk 0:01:28.7]} 16. e5 {[%clk 0:01:31.9]} 16... Nh7
{[%clk 0:01:11.9]} 17. f4 {[%clk 0:01:33.2]} 17... c5 {[%clk 0:00:57.7]} 18.
Qxc5 {[%clk 0:01:32.8]} 18... Rc8 {[%clk 0:00:56.5]} 19. Qb4 {[%clk 0:01:21]}
19... a5 {[%clk 0:00:56.3]} 20. Qd4 {[%clk 0:01:18.9]} 20... Rc6 {[%clk
0:00:32.9]} 21. g4 {[%clk 0:01:17.2]} 21... Qc8 {[%clk 0:00:30.5]} 22. Bd3
{[%clk 0:01:18.5]} 22... Qb7 {[%clk 0:00:21.4]} 23. g5 {[%clk 0:01:19.3]} 23...
hxg5 {[%clk 0:00:18.4]} 24. Rhg1 {[%clk 0:01:20.9]} 24... Rec8 {[%clk
0:00:12.3]} 25. fxg5 {[%clk 0:01:22]} 25... Nf8 {[%clk 0:00:10.8]} 26. Bxf8
{[%clk 0:01:18.5]} 26... Kxf8 {[%clk 0:00:12.1]} 27. g6 {[%clk 0:01:20]} 27...
Qb4 {[%clk 0:00:11]} 28. Qxb4+ {[%clk 0:01:20.5]} 28... axb4 {[%clk 0:00:12.1]}
29. Rdf1 {[%clk 0:01:22.3]} 29... Be8 {[%clk 0:00:12.8]} 30. Rg4 {[%clk
0:01:21.3]} 30... Ra8 {[%clk 0:00:10]} 31. gxf7 {[%clk 0:01:09.5]} 31... Bd7
{[%clk 0:00:09.5]} 32. Rxb4 {[%clk 0:01:04.4]} 32... Rc7 {[%clk 0:00:09]} 33.
Rh4 {[%clk 0:01:03]} 33... Ke7 {[%clk 0:00:10.1]} 34. Rhf4 {[%clk 0:01:02.7]}
34... Rf8 {[%clk 0:00:10.7]} 35. a4 {[%clk 0:01:03.1]} 35... Ra7 {[%clk
0:00:10.1]} 36. b3 {[%clk 0:01:03.3]} 36... Raa8 {[%clk 0:00:09.7]} 37. Kd2
{[%clk 0:01:04.7]} 37... Rh8 {[%clk 0:00:10.6]} 38. f8=Q+ {[%clk 0:01:00.5]}
38... Raxf8 {[%clk 0:00:11.2]} 39. Rxf8 {[%clk 0:01:02.1]} 39... Rxf8 {[%clk
0:00:12.5]} 40. Rxf8 {[%clk 0:01:03.4]} 40... Kxf8 {[%clk 0:00:14]} 41. Ke3
{[%clk 0:01:02.7]} 41... Ke7 {[%clk 0:00:14.5]} 42. Kd4 {[%clk 0:01:04.1]} 42...
Be8 {[%clk 0:00:14.2]} 43. Kc5 {[%clk 0:01:05.2]} 43... g5 {[%clk 0:00:13.8]}
44. Kb6 {[%clk 0:01:01.7]} 44... Bxa4 {[%clk 0:00:14.7]} 45. bxa4 {[%clk
0:01:02.5]} 1-0

[Event "*** Titled Tuesday Blitz"]
[Site "Chess.com"]
[Date "2019.09.03"]
[Round "5"]
[White "Valuebet2000"]
[Black "nubair1198"]
[Result "1-0"]
[WhiteElo "2488"]
[BlackElo "2641"]
[TimeControl "180+2"]
[EndTime "16:06:10 PDT"]
[Termination "Valuebet2000 won by resignation"]

1. e4 {[%clk 0:03:01.9]} 1... g6 {[%clk 0:01:38.9]} 2. d4 {[%clk 0:02:57.2]}
2... Bg7 {[%clk 0:01:40.3]} 3. Be3 {[%clk 0:02:58.8]} 3... c6 {[%clk 0:01:39.8]}
4. Nc3 {[%clk 0:02:37.7]} 4... d5 {[%clk 0:01:40.8]} 5. Nf3 {[%clk 0:02:38.3]}
5... dxe4 {[%clk 0:01:33.8]} 6. Nxe4 {[%clk 0:02:40.2]} 6... Nd7 {[%clk
0:01:35.4]} 7. Bd3 {[%clk 0:02:33.6]} 7... Ngf6 {[%clk 0:01:36.6]} 8. Nxf6+
{[%clk 0:02:32.4]} 8... Nxf6 {[%clk 0:01:37.4]} 9. Qd2 {[%clk 0:02:33.3]} 9...
O-O {[%clk 0:01:38.8]} 10. Bh6 {[%clk 0:02:32.7]} 10... Bg4 {[%clk 0:01:39.1]}
11. Bxg7 {[%clk 0:02:32.9]} 11... Kxg7 {[%clk 0:01:40.1]} 12. Be2 {[%clk
0:02:21.6]} 12... c5 {[%clk 0:01:31]} 13. dxc5 {[%clk 0:02:16.6]} 13... Ne4
{[%clk 0:01:32.5]} 14. Qe3 {[%clk 0:02:09.7]} 14... Qa5+ {[%clk 0:01:31.5]} 15.
c3 {[%clk 0:02:10.9]} 15... Bf5 {[%clk 0:01:25.3]} 16. b4 {[%clk 0:01:53]} 16...
Qa3 {[%clk 0:01:20]} 17. Rc1 {[%clk 0:01:54]} 17... Nf6 {[%clk 0:01:11.3]} 18.
O-O {[%clk 0:01:47.1]} 18... Qxa2 {[%clk 0:01:09.8]} 19. Nd4 {[%clk 0:01:44.8]}
19... Be4 {[%clk 0:01:02.2]} 20. Ra1 {[%clk 0:01:18.3]} 20... Qd5 {[%clk
0:01:02.4]} 21. f3 {[%clk 0:01:08.1]} 21... Bf5 {[%clk 0:01:02.4]} 22. c4 {[%clk
0:01:09.2]} 22... Qd7 {[%clk 0:01:02.1]} 23. Rad1 {[%clk 0:01:06.3]} 23... Qc8
{[%clk 0:00:54.9]} 24. g4 {[%clk 0:01:00.8]} 24... Bd7 {[%clk 0:00:55.5]} 25.
Qxe7 {[%clk 0:00:49.4]} 25... Re8 {[%clk 0:00:57]} 26. Qd6 {[%clk 0:00:50.6]}
26... Ba4 {[%clk 0:00:58.5]} 27. Rd2 {[%clk 0:00:47.5]} 27... Re3 {[%clk
0:00:59.8]} 28. Qf4 {[%clk 0:00:32.3]} 28... Qe8 {[%clk 0:00:59.5]} 29. Kf2
{[%clk 0:00:33.1]} 29... Rc3 {[%clk 0:00:56.7]} 30. Nb5 {[%clk 0:00:30.7]} 30...
Bxb5 {[%clk 0:00:53.3]} 31. cxb5 {[%clk 0:00:32.6]} 31... Rd8 {[%clk 0:00:44.5]}
32. Rxd8 {[%clk 0:00:28.4]} 32... Qxd8 {[%clk 0:00:46.4]} 33. Qe5 {[%clk
0:00:29.8]} 33... Qd2 {[%clk 0:00:20.5]} 34. g5 {[%clk 0:00:30.1]} 34... h5
{[%clk 0:00:19]} 35. Rd1 {[%clk 0:00:21.4]} 35... Qb2 {[%clk 0:00:07.1]} 36.
Qxf6+ {[%clk 0:00:19.9]} 1-0